fUST/lending_fUST_20250716
["ID","MTS","AMOUNT","RATE_DAILY","PERIOD"]
[372547992,1752679842931,-2438.56,0.00019452,2]
[372547993,1752679842942,-687.27,0.00019452,2]
[372547994,1752679842952,-460.0,0.00019452,2]
[372547995,1752679842962,-460.0,0.00019452,2]
[372547996,1752679842971,-460.0,0.00019452,2]
[372547997,1752679842981,-460.0,0.00019452,2]
[372547998,1752679842991,-521.65,0.00019452,2]
[372547999,1752679843001,-460.0,0.00019452,2]
[372548000,1752679843011,-4147.13,0.00019452,2]
[372548001,1752679843021,-6962.62,0.00019452,2]
[372548002,1752679843031,-460.0,0.00019452,2]
[372548003,1752679843040,-460.0,0.00019452,2]
[372548004,1752679843051,-959.76,0.00019452,2]
[372548005,1752679843060,-461.68499274,0.00019452,2]
[372548006,1752679843070,-460.0,0.00019452,2]
[372548007,1752679843080,-460.0,0.00019452,2]
[372548008,1752679843090,-2589.89,0.00019452,2]
[372548009,1752679843099,-3564.08,0.00019452,2]
[372548010,1752679843109,-460.0,0.00019452,2]
[372548011,1752679843118,-460.0,0.00019452,2]
[372548012,1752679843128,-460.0,0.00019452,2]
[372548013,1752679843138,-1879.23,0.00019452,2]
[372548015,1752679843148,-1196.19,0.00019452,2]
[372548017,1752679843158,-460.0,0.00019452,2]
[372548018,1752679843168,-460.0,0.00019452,2]
[372548020,1752679843178,-2089.21,0.00019452,2]
[372548021,1752679843188,-460.0,0.00019452,2]
[372548022,1752679843201,-460.0,0.00019452,2]
[372548023,1752679843210,-13889.83,0.00019452,2]
[372548024,1752679843220,-460.0,0.00019452,2]
[372548025,1752679843230,-460.0,0.00019452,2]
[372548026,1752679843239,-460.0,0.00019452,2]
[372548027,1752679843249,-460.0,0.00019452,2]
[372548028,1752679843259,-864.03,0.00019452,2]
[372548029,1752679843268,-464.03,0.00019452,2]
[372548031,1752679843278,-460.0,0.00019452,2]
[372548033,1752679843289,-460.0,0.00019452,2]
[372548036,1752679843299,-460.0,0.00019452,2]
[372548038,1752679843308,-460.0,0.00019452,2]
[372548040,1752679843317,-942.0,0.00019452,2]
[372548043,1752679843327,-460.0,0.00019452,2]
[372548045,1752679843337,-1156.65,0.00019452,2]
[372548047,1752679843347,-460.0,0.00019452,2]
[372548049,1752679843356,-564.35,0.00019452,2]
[372548051,1752679843366,-460.0,0.00019452,2]
[372548053,1752679843375,-541.98333998,0.00019452,2]
[372548055,1752679843385,-460.0,0.00019452,2]
[372548057,1752679843395,-460.0,0.00019452,2]
[372548059,1752679843405,-460.0,0.00019452,2]
[372548060,1752679843414,-460.0,0.00019452,2]
[372548061,1752679843424,-5710.44,0.00019452,2]
[372548062,1752679843433,-9435.4,0.00019452,2]
[372548063,1752679843446,-460.0,0.00019452,2]
[372548064,1752679843456,-460.0,0.00019452,2]
[372548065,1752679843466,-1063.71,0.00019452,2]
[372548066,1752679843475,-460.0,0.00019452,2]
[372548067,1752679843485,-460.0,0.00019452,2]
[372548068,1752679843495,-4062.86,0.00019452,2]
[372548069,1752679843504,-460.0,0.00019452,2]
[372548070,1752679843513,-460.0,0.00019452,2]
[372548071,1752679843524,-460.0,0.00019452,2]
[372548072,1752679843535,-460.0,0.00019452,2]
[372548073,1752679843544,-460.0,0.00019452,2]
[372548074,1752679843554,-460.0,0.00019452,2]
[372548075,1752679843564,-1067.68,0.00019452,2]
[372548077,1752679843573,-1081.66,0.00019452,2]
[372548078,1752679843583,-460.0,0.00019452,2]
[372548080,1752679843593,-801.73,0.00019452,2]
[372548081,1752679843603,-460.0,0.00019452,2]
[372548082,1752679843613,-460.0,0.00019452,2]
[372548083,1752679843623,-801.73,0.00019452,2]
[372548084,1752679843632,-662.38,0.00019452,2]
[372548086,1752679843642,-652.86,0.00019452,2]
[372548088,1752679843652,-460.0,0.00019452,2]
[372548090,1752679843661,-558.57475422,0.00019452,2]
[372548091,1752679843673,-460.0,0.00019452,2]
[372548092,1752679843683,-463.91186018,0.00019452,2]
[372548094,1752679843697,-1058.85,0.00019452,2]
[372548095,1752679843706,-917.58,0.00019452,2]
[372548096,1752679843716,-460.0,0.00019452,2]
[372548097,1752679843727,-5295.6,0.00019452,2]
[372548098,1752679843737,-4731.5,0.00019452,2]
[372548099,1752679843747,-1895.02,0.00019452,2]
[372548100,1752679843756,-460.0,0.00019452,2]
[372548101,1752679843766,-3263.9,0.00019452,2]
[372548102,1752679843777,-460.0,0.00019452,2]
[372548103,1752679843786,-2186.29,0.00019452,2]
[372548105,1752679843795,-460.0,0.00019452,2]
[372548107,1752679843806,-460.0,0.00019452,2]
[372548108,1752679843816,-460.0,0.00019452,2]
[372548109,1752679843825,-460.0,0.00019452,2]
[372548110,1752679843835,-5028.57,0.00019452,2]
[372548111,1752679843844,-460.0,0.00019452,2]
[372548112,1752679843854,-460.0,0.00019452,2]
[372548113,1752679843865,-582.88,0.00019452,2]
[372548114,1752679843875,-460.0,0.00019452,2]
[372548115,1752679843884,-422.08223441,0.00019452,2]
[372548116,1752679843894,-460.0,0.00019452,2]
[372548117,1752679843904,-461.77760219,0.00019452,2]
[372548118,1752679843914,-469.31,0.00019452,2]
[372548119,1752679843923,-1167.8,0.00019452,2]
[372548120,1752679843933,-460.0,0.00019452,2]
[372548121,1752679843943,-1440.99,0.00019452,2]
[372548122,1752679843953,-460.0,0.00019452,2]
[372548123,1752679843963,-463.39140297,0.00019452,2]
[372548124,1752679843973,-467.63,0.00019452,2]
[372548125,1752679843983,-460.0,0.00019452,2]
[372548126,1752679843993,-460.0,0.00019452,2]
[372548127,1752679844003,-460.0,0.00019452,2]
[372548128,1752679844013,-1586.13,0.00019452,2]
[372548129,1752679844023,-541.03,0.00019452,2]
[372548130,1752679844033,-460.0,0.00019452,2]
[372548131,1752679844043,-468.75377786,0.00019452,2]
[372548132,1752679844053,-460.0,0.00019452,2]
[372548133,1752679844062,-460.0,0.00019452,2]
[372548134,1752679844072,-460.0,0.00019452,2]
[372548135,1752679844081,-500.25049769,0.00019473,2]
[372548136,1752679844091,-500.0,0.00019473,2]
[372548137,1752679844100,-500.0,0.00019473,2]
[372548138,1752679844110,-500.0,0.00019513,2]
[372548139,1752679844120,-3801.642,0.00019527,2]
[372548140,1752679844130,-151.0,0.00019527,2]
[372548141,1752679844139,-151.0,0.00019527,2]
[372548142,1752679844149,-500.0,0.00019527,2]
[372548143,1752679844159,-151.0,0.00019527,2]
[372548144,1752679844168,-207.4,0.00019527,2]
[372548145,1752679844178,-151.0,0.00019527,2]
[372548146,1752679844187,-500.0,0.00019527,2]
[372548147,1752679844200,-151.0,0.00019527,2]
[372548148,1752679844210,-500.0,0.00019527,2]
[372548149,1752679844219,-500.0,0.00019527,2]
[372548150,1752679844229,-500.0,0.00019527,2]
[372548151,1752679844239,-151.0,0.00019527,2]
[372548152,1752679844249,-151.0,0.00019527,2]
[372548153,1752679844259,-500.0,0.00019527,2]
[372548154,1752679844269,-151.0,0.00019527,2]
[372548155,1752679844279,-500.0,0.00019527,2]
[372548156,1752679844288,-151.0,0.00019527,2]
[372548157,1752679844299,-151.0,0.00019527,2]
[372548158,1752679844308,-500.0,0.00019527,2]
[372548159,1752679844318,-151.0,0.00019527,2]
[372548160,1752679844328,-153.71418543,0.00019527,2]
[372548161,1752679844338,-500.0,0.00019527,2]
[372548162,1752679844347,-151.0,0.00019527,2]
[372548163,1752679844357,-500.0,0.00019527,2]
[372548164,1752679844367,-151.0,0.00019527,2]
[372548165,1752679844376,-500.0,0.00019527,2]
[372548166,1752679844387,-500.0,0.00019527,2]
[372548167,1752679844397,-500.0,0.00019527,2]
[372548168,1752679844406,-500.0,0.00019527,2]
[372548169,1752679844416,-151.0,0.00019527,2]
[372548170,1752679844425,-500.0,0.00019527,2]
[372548171,1752679844434,-151.0,0.00019527,2]
[372548172,1752679844448,-500.0,0.00019527,2]
[372548173,1752679844457,-500.0,0.00019527,2]
[372548174,1752679844467,-151.0,0.00019527,2]
[372548175,1752679844477,-151.0,0.00019527,2]
[372548176,1752679844486,-500.0,0.00019527,2]
[372548177,1752679844496,-151.0,0.00019527,2]
[372548178,1752679844506,-151.0,0.00019527,2]
[372548179,1752679844516,-151.0,0.00019527,2]
[372548180,1752679844526,-151.0,0.00019527,2]
[372548181,1752679844535,-151.0,0.00019527,2]
[372548182,1752679844545,-500.0,0.00019527,2]
[372548183,1752679844554,-500.0,0.00019527,2]
[372548184,1752679844564,-25000.0,0.00019527,2]
[372548185,1752679844575,-500.0,0.00019527,2]
[372548186,1752679844584,-510.23637245,0.00019527,2]
[372548187,1752679844594,-4261.95157991,0.00019527,2]
[372548188,1752679844604,-151.0,0.00019527,2]
[372548189,1752679844614,-3942.302754,0.00019582,2]
[372548190,1752679844624,-4088.1679559,0.00019637,2]
[372548191,1752679844634,-1000.0,0.0001967,2]
[372548192,1752679844643,-4239.43017027,0.00019692,2]
[372548193,1752679844653,-1000.0,0.00019721,2]
[372548194,1752679844663,-1000.0,0.00019721,2]
[372548195,1752679844673,-1000.0,0.00019721,2]
[372548196,1752679844682,-267.99280332,0.00019721,2]
[372548197,1752679844701,-460.0,0.00019726,2]
[372548198,1752679844711,-460.0,0.00019726,2]
[372548199,1752679844721,-460.0,0.00019726,2]
[372548200,1752679844731,-939.24,0.00019726,2]
[372548201,1752679844741,-460.0,0.00019726,2]
[372548202,1752679844750,-460.0,0.00019726,2]
[372548203,1752679844762,-460.0,0.00019726,2]
[372548204,1752679844772,-460.0,0.00019726,2]
[372548205,1752679844782,-460.0,0.00019726,2]
[372548206,1752679844792,-460.0,0.00019726,2]
[372548207,1752679844801,-460.0,0.00019726,2]
[372548208,1752679844811,-460.0,0.00019726,2]
[372548209,1752679844821,-1185.85,0.00019726,2]
[372548210,1752679844830,-465.07885507,0.00019726,2]
[372548211,1752679844839,-460.0,0.00019726,2]
[372548212,1752679844849,-460.0,0.00019726,2]
[372548213,1752679844859,-460.0,0.00019726,2]
[372548214,1752679844868,-460.0,0.00019726,2]
[372548215,1752679844877,-460.0,0.00019726,2]
[372548216,1752679844887,-460.0,0.00019726,2]
[372548217,1752679844897,-460.0,0.00019726,2]
[372548218,1752679844907,-460.0,0.00019726,2]
[372548219,1752679844916,-460.0,0.00019726,2]
[372548220,1752679844926,-460.0,0.00019726,2]
[372548221,1752679844936,-579.7592567,0.00019726,2]
[372548222,1752679844950,-456.11139275,0.00019726,2]
[372548223,1752679844960,-460.0,0.00019726,2]
[372548224,1752679844970,-460.0,0.00019726,2]
[372548225,1752679844980,-460.0,0.00019726,2]
[372548226,1752679844989,-460.0,0.00019726,2]
[372548227,1752679844999,-460.0,0.00019726,2]
[372548228,1752679845010,-1429.97,0.00019726,2]
[372548229,1752679845020,-460.0,0.00019726,2]
[372548230,1752679845029,-464.46585055,0.00019726,2]
[372548231,1752679845039,-460.0,0.00019726,2]
[372548232,1752679845049,-460.0,0.00019726,2]
[372548233,1752679845059,-460.0,0.00019726,2]
[372548234,1752679845069,-844.39,0.00019726,2]
[372548235,1752679845078,-987.04,0.00019726,2]
[372548236,1752679845088,-470.19602813,0.00019726,2]
[372548237,1752679845098,-594.46,0.00019726,2]
[372548238,1752679845108,-460.0,0.00019726,2]
[372548239,1752679845118,-460.0,0.00019726,2]
[372548240,1752679845127,-460.0,0.00019726,2]
[372548241,1752679845137,-460.0,0.00019726,2]
[372548242,1752679845146,-460.0,0.00019726,2]
[372548243,1752679845156,-460.0,0.00019726,2]
[372548244,1752679845165,-460.0,0.00019726,2]
[372548245,1752679845175,-5117.18,0.00019726,2]
[372548246,1752679845185,-778.65,0.00019726,2]
[372548247,1752679845198,-460.0,0.00019726,2]
[372548248,1752679845208,-581.64193957,0.00019726,2]
[372548249,1752679845218,-471.95,0.00019726,2]
[372548250,1752679845228,-10006.83,0.00019726,2]
[372548251,1752679845238,-506.45,0.00019726,2]
[372548252,1752679845247,-2438.56,0.00019726,2]
[372548253,1752679845257,-687.27,0.00019726,2]
[372548254,1752679845267,-393.14000568,0.00019726,2]
[372548255,1752679845276,-460.0,0.00019726,2]
[372548256,1752679845286,-460.0,0.00019726,2]
[372548257,1752679845297,-460.0,0.00019726,2]
[372548258,1752679845306,-521.65,0.00019726,2]
[372548259,1752679845316,-4147.13,0.00019726,2]
[372548260,1752679845325,-6962.62,0.00019726,2]
[372548261,1752679845335,-460.0,0.00019726,2]
[372548262,1752679845344,-460.0,0.00019726,2]
[372548263,1752679845355,-959.76,0.00019726,2]
[372548264,1752679845364,-460.0,0.00019726,2]
[372548265,1752679845374,-460.0,0.00019726,2]
[372548266,1752679845384,-2589.89,0.00019726,2]
[372548267,1752679845394,-3564.08,0.00019726,2]
[372548268,1752679845403,-460.0,0.00019726,2]
[372548269,1752679845413,-460.0,0.00019726,2]
[372548270,1752679845423,-1879.23,0.00019726,2]
[372548271,1752679845433,-1196.19,0.00019726,2]
[372548272,1752679845442,-460.0,0.00019726,2]
[372548273,1752679845457,-460.0,0.00019726,2]
[372548274,1752679845467,-2089.21,0.00019726,2]
[372548275,1752679845476,-460.0,0.00019726,2]
[372548276,1752679845486,-460.0,0.00019726,2]
[372548277,1752679845496,-13889.83,0.00019726,2]
[372548278,1752679845506,-460.0,0.00019726,2]
[372548279,1752679845516,-460.0,0.00019726,2]
[372548280,1752679845526,-460.0,0.00019726,2]
[372548281,1752679845535,-460.0,0.00019726,2]
[372548282,1752679845545,-864.03,0.00019726,2]
[372548283,1752679845677,-464.03,0.00019726,2]
[372548284,1752679845687,-460.0,0.00019726,2]
[372548285,1752679845705,-460.0,0.00019726,2]
[372548286,1752679845715,-460.0,0.00019726,2]
[372548287,1752679845724,-460.0,0.00019726,2]
[372548288,1752679845734,-942.0,0.00019726,2]
[372548289,1752679845743,-460.0,0.00019726,2]
[372548290,1752679845754,-1156.65,0.00019726,2]
[372548291,1752679845765,-460.0,0.00019726,2]
[372548292,1752679845775,-564.35,0.00019726,2]
[372548293,1752679845785,-460.0,0.00019726,2]
[372548294,1752679845794,-460.0,0.00019726,2]
[372548295,1752679845804,-460.0,0.00019726,2]
[372548296,1752679845814,-460.0,0.00019726,2]
[372548297,1752679845823,-5710.44,0.00019726,2]
[372548298,1752679845834,-9435.4,0.00019726,2]
[372548299,1752679845843,-460.0,0.00019726,2]
[372548300,1752679845854,-460.0,0.00019726,2]
[372548301,1752679845864,-1063.71,0.00019726,2]
[372548302,1752679845874,-460.0,0.00019726,2]
[372548303,1752679845884,-4062.86,0.00019726,2]
[372548304,1752679845895,-460.0,0.00019726,2]
[372548305,1752679845906,-460.0,0.00019726,2]
[372548306,1752679845916,-460.0,0.00019726,2]
[372548307,1752679845926,-460.0,0.00019726,2]
[372548308,1752679845936,-1081.66,0.00019726,2]
[372548309,1752679845950,-1067.68,0.00019726,2]
[372548310,1752679845959,-293.84776793,0.00019726,2]
[372548311,1752679845969,-801.73,0.00019726,2]
[372548312,1752679845979,-460.0,0.00019726,2]
[372548313,1752679845988,-460.0,0.00019726,2]
[372548314,1752679845998,-801.73,0.00019726,2]
[372548315,1752679846009,-662.38,0.00019726,2]
[372548316,1752679846019,-652.86,0.00019726,2]
[372548317,1752679846028,-460.0,0.00019726,2]
[372548318,1752679846038,-1058.85,0.00019726,2]
[372548319,1752679846047,-917.58,0.00019726,2]
[372548321,1752679846058,-5295.6,0.00019726,2]
[372548322,1752679846068,-4731.5,0.00019726,2]
[372548323,1752679846079,-1895.02,0.00019726,2]
[372548324,1752679846091,-460.0,0.00019726,2]
[372548325,1752679846101,-3263.9,0.00019726,2]
[372548326,1752679846111,-460.0,0.00019726,2]
[372548327,1752679846121,-2186.29,0.00019726,2]
[372548328,1752679846130,-460.0,0.00019726,2]
[372548330,1752679846139,-460.0,0.00019726,2]
[372548331,1752679846149,-460.0,0.00019726,2]
[372548332,1752679846158,-5028.57,0.00019726,2]
[372548333,1752679846168,-185.68628087,0.00019726,2]
[372548334,1752679846179,-460.0,0.00019726,2]
[372548335,1752679846189,-582.88,0.00019726,2]
[372548336,1752679846202,-428.85506241,0.00019726,2]
[372548337,1752679846212,-460.0,0.00019726,2]
[372548339,1752679846222,-469.31,0.00019726,2]
[372548340,1752679846231,-1167.8,0.00019726,2]
[372548341,1752679846241,-460.0,0.00019726,2]
[372548342,1752679846251,-1440.99,0.00019726,2]
[372548343,1752679846261,-460.0,0.00019726,2]
[372548344,1752679846272,-467.63,0.00019726,2]
[372548345,1752679846283,-460.0,0.00019726,2]
[372548346,1752679846294,-460.0,0.00019726,2]
[372548347,1752679846304,-1586.13,0.00019726,2]
[372548348,1752679846314,-541.03,0.00019726,2]
[372548349,1752679846323,-460.0,0.00019726,2]
[372548350,1752679846333,-460.0,0.00019726,2]
[372548351,1752679846343,-460.0,0.00019726,2]
[372548352,1752679846352,-4396.28908657,0.00019747,2]
[372548353,1752679846362,-151.0,0.000198,2]
[372548354,1752679846371,-4558.95178277,0.00019802,2]
[372548355,1752679846382,-4727.63299873,0.00019857,2]
[372548356,1752679846391,-821.52001914,0.000199,2]
[372548357,1752679846401,-17664.72973427,0.000199,2]
[372548358,1752679846411,-9021.18677687,0.000199,2]
[372548359,1752679846420,-500.0,0.00019973,2]
[372548360,1752679846430,-500.0,0.00019973,2]
[372548361,1752679846439,-500.0,0.00019973,2]
[372548362,1752679846452,-500.0,0.00019973,2]
[372548363,1752679846462,-500.0,0.00019973,2]
[372548364,1752679846471,-460.0,0.0002,2]
[372548365,1752679846481,-460.0,0.0002,2]
[372548366,1752679846491,-463.09992033,0.0002,2]
[372548367,1752679846501,-463.48573571,0.0002,2]
[372548368,1752679846511,-460.0,0.0002,2]
[372548369,1752679846520,-460.0,0.0002,2]
[372548370,1752679846530,-460.0,0.0002,2]
[372548371,1752679846539,-460.0,0.0002,2]
[372548372,1752679846549,-460.0,0.0002,2]
[372548373,1752679846560,-460.0,0.0002,2]
[372548374,1752679846569,-460.0,0.0002,2]
[372548375,1752679846578,-460.0,0.0002,2]
[372548376,1752679846588,-460.0,0.0002,2]
[372548377,1752679846598,-460.0,0.0002,2]
[372548378,1752679846607,-460.0,0.0002,2]
[372548379,1752679846616,-460.0,0.0002,2]
[372548380,1752679846626,-617.79,0.0002,2]
[372548381,1752679846636,-518.95241946,0.0002,2]
[372548382,1752679846645,-460.0,0.0002,2]
[372548383,1752679846654,-460.0,0.0002,2]
[372548384,1752679846664,-460.0,0.0002,2]
[372548385,1752679846677,-460.0,0.0002,2]
[372548386,1752679846690,-460.0,0.0002,2]
[372548387,1752679846707,-472.96,0.0002,2]
[372548388,1752679846718,-460.0,0.0002,2]
[372548389,1752679846729,-561.35,0.0002,2]
[372548390,1752679846738,-460.0,0.0002,2]
[372548391,1752679846748,-420.23,0.0002,2]
[372548392,1752679846760,-460.0,0.0002,2]
[372548393,1752679846772,-466.62,0.0002,2]
[372548394,1752679846782,-460.0,0.0002,2]
[372548395,1752679846792,-779.28,0.0002,2]
[372548396,1752679846801,-460.0,0.0002,2]
[372548397,1752679846811,-460.0,0.0002,2]
[372548398,1752679846820,-460.0,0.0002,2]
[372548399,1752679846830,-460.0,0.0002,2]
[372548400,1752679846839,-460.0,0.0002,2]
[372548401,1752679846849,-460.0,0.0002,2]
[372548402,1752679846859,-460.0,0.0002,2]
[372548403,1752679846868,-460.0,0.0002,2]
[372548404,1752679846878,-939.24,0.0002,2]
[372548405,1752679846889,-460.0,0.0002,2]
[372548406,1752679846898,-460.0,0.0002,2]
[372548407,1752679846907,-460.0,0.0002,2]
[372548408,1752679846917,-460.0,0.0002,2]
[372548409,1752679846927,-460.0,0.0002,2]
[372548410,1752679846937,-460.0,0.0002,2]
[372548411,1752679846953,-460.0,0.0002,2]
[372548412,1752679846962,-460.0,0.0002,2]
[372548413,1752679846972,-1185.85,0.0002,2]
[372548414,1752679846982,-460.0,0.0002,2]
[372548415,1752679846992,-460.0,0.0002,2]
[372548416,1752679847002,-200.82605146,0.0002,2]
[372548417,1752679847012,-460.0,0.0002,2]
[372548418,1752679847022,-460.0,0.0002,2]
[372548419,1752679847031,-460.0,0.0002,2]
[372548420,1752679847041,-460.0,0.0002,2]
[372548421,1752679847051,-460.0,0.0002,2]
[372548422,1752679847061,-460.0,0.0002,2]
[372548423,1752679847071,-460.0,0.0002,2]
[372548424,1752679847081,-460.0,0.0002,2]
[372548425,1752679847091,-460.0,0.0002,2]
[372548426,1752679847101,-1429.97,0.0002,2]
[372548427,1752679847111,-460.0,0.0002,2]
[372548429,1752679847121,-460.0,0.0002,2]
[372548431,1752679847131,-460.0,0.0002,2]
[372548432,1752679847140,-844.39,0.0002,2]
[372548434,1752679847150,-987.04,0.0002,2]
[372548435,1752679847159,-594.46,0.0002,2]
[372548436,1752679847168,-460.0,0.0002,2]
[372548437,1752679847177,-460.0,0.0002,2]
[372548438,1752679847187,-460.0,0.0002,2]
[372548439,1752679847203,-460.0,0.0002,2]
[372548440,1752679847214,-460.0,0.0002,2]
[372548442,1752679847231,-460.0,0.0002,2]
[372548443,1752679847243,-460.0,0.0002,2]
[372548445,1752679847252,-5117.18,0.0002,2]
[372548447,1752679847261,-778.65,0.0002,2]
[372548449,1752679847270,-460.0,0.0002,2]
[372548451,1752679847279,-471.95,0.0002,2]
[372548453,1752679847288,-10006.83,0.0002,2]
[372548455,1752679847297,-506.45,0.0002,2]
[372548457,1752679847306,-2438.56,0.0002,2]
[372548458,1752679847315,-687.27,0.0002,2]
[372548459,1752679847324,-460.0,0.0002,2]
[372548460,1752679847333,-460.0,0.0002,2]
[372548461,1752679847343,-460.0,0.0002,2]
[372548462,1752679847352,-521.65,0.0002,2]
[372548463,1752679847361,-4147.13,0.0002,2]
[372548464,1752679847370,-6962.62,0.0002,2]
[372548465,1752679847379,-460.0,0.0002,2]
[372548466,1752679847388,-460.0,0.0002,2]
[372548467,1752679847398,-959.76,0.0002,2]
[372548468,1752679847407,-460.0,0.0002,2]
[372548469,1752679847416,-460.0,0.0002,2]
[372548470,1752679847426,-2589.89,0.0002,2]
[372548471,1752679847435,-3564.08,0.0002,2]
[372548472,1752679847449,-460.0,0.0002,2]
[372548473,1752679847459,-460.0,0.0002,2]
[372548474,1752679847468,-1879.23,0.0002,2]
[372548475,1752679847478,-1196.19,0.0002,2]
[372548476,1752679847487,-460.0,0.0002,2]
[372548477,1752679847498,-460.0,0.0002,2]
[372548478,1752679847508,-184.69847669,0.0002,2]
[372548479,1752679847518,-460.0,0.0002,2]
[372548481,1752679847528,-13889.83,0.0002,2]
[372548483,1752679847537,-2089.21,0.0002,2]
[372548484,1752679847546,-460.0,0.0002,2]
[372548485,1752679847556,-460.0,0.0002,2]
[372548486,1752679847565,-460.0,0.0002,2]
[372548487,1752679847575,-460.0,0.0002,2]
[372548488,1752679847584,-864.03,0.0002,2]
[372548489,1752679847593,-464.03,0.0002,2]
[372548490,1752679847602,-460.0,0.0002,2]
[372548491,1752679847612,-460.0,0.0002,2]
[372548492,1752679847622,-460.0,0.0002,2]
[372548493,1752679847631,-460.0,0.0002,2]
[372548494,1752679847641,-942.0,0.0002,2]
[372548495,1752679847650,-460.0,0.0002,2]
[372548496,1752679847659,-1156.65,0.0002,2]
[372548497,1752679847669,-460.0,0.0002,2]
[372548498,1752679847687,-564.35,0.0002,2]
[372548499,1752679847701,-460.0,0.0002,2]
[372548500,1752679847710,-460.0,0.0002,2]
[372548501,1752679847720,-460.0,0.0002,2]
[372548502,1752679847730,-460.0,0.0002,2]
[372548503,1752679847739,-5710.44,0.0002,2]
[372548504,1752679847748,-9435.4,0.0002,2]
[372548505,1752679847758,-460.0,0.0002,2]
[372548506,1752679847767,-460.0,0.0002,2]
[372548507,1752679847777,-1063.71,0.0002,2]
[372548508,1752679847787,-460.0,0.0002,2]
[372548509,1752679847796,-4062.86,0.0002,2]
[372548510,1752679847806,-151.0,0.0002,3]
[372548511,1752679847816,-460.0,0.0002,2]
[372548512,1752679847826,-460.0,0.0002,2]
[372548513,1752679847836,-460.0,0.0002,2]
[372548514,1752679847845,-1081.66,0.0002,2]
[372548515,1752679847855,-1067.68,0.0002,2]
[372548516,1752679847864,-801.73,0.0002,2]
[372548517,1752679847874,-460.0,0.0002,2]
[372548518,1752679847884,-460.0,0.0002,2]
[372548519,1752679847894,-801.73,0.0002,2]
[372548520,1752679847904,-662.38,0.0002,2]
[372548521,1752679847914,-652.86,0.0002,2]
[372548522,1752679847923,-460.0,0.0002,2]
[372548523,1752679847933,-1058.85,0.0002,2]
[372548524,1752679847943,-917.58,0.0002,2]
[372548525,1752679847954,-4731.5,0.0002,2]
[372548526,1752679847963,-5295.6,0.0002,2]
[372548527,1752679847973,-1895.02,0.0002,2]
[372548528,1752679847982,-460.0,0.0002,2]
[372548529,1752679847992,-3263.9,0.0002,2]
[372548530,1752679848002,-297.39647572,0.0002,2]
[372548531,1752679848012,-2186.29,0.0002,2]
[372548532,1752679848022,-460.0,0.0002,2]
[372548533,1752679848031,-460.0,0.0002,2]
[372548534,1752679848041,-460.0,0.0002,2]